bitfinex/quotes_SOLUSD_20241117
["timestamp","ask_amount","ask_price","bid_price","bid_amount"]
[1731881187292,27.63595186,232.42,232.34,23.902374]
[1731881187578,27.63595186,232.46,232.37,27.63595186]
[1731881187888,27.63595186,232.41,232.32,27.63595186]
[1731881188182,70.0,232.54,232.29,8.3269]
[1731881188183,27.63595186,232.45,232.37,27.63595186]
[1731881188484,110.4985,232.6,232.41,27.63595186]
[1731881188485,27.63595186,232.5,232.41,27.63595186]
[1731881188884,27.63595186,232.46,232.37,31.93935186]
[1731881189183,27.63595186,232.48,232.39,27.63595186]
[1731881189987,27.63595186,232.48,232.4,24.027864]
[1731881190160,27.63595186,232.5,232.41,27.63595186]
[1731881190365,31.93695186,232.5,232.41,27.63595186]
[1731881191460,31.93695186,232.5,232.41,31.93845186]
[1731881193677,27.63595186,232.48,232.41,4.3025]
[1731881193878,27.63595186,232.48,232.35,0.2]
[1731881193879,27.63595186,232.44,232.35,27.63595186]
[1731881194196,0.09367462,232.53,232.33,38.39605186]
[1731881194197,27.63595186,232.42,232.33,38.39605186]
[1731881195394,27.63595186,232.44,232.34,23.902374]
[1731881195632,27.63595186,232.48,232.39,27.63595186]
[1731881195901,27.63595186,232.48,232.41,27.63595186]
[1731881196496,27.63595186,232.5,232.43,27.63595186]
[1731881197074,0.1,232.65,232.48,23.776884]
[1731881197075,27.63595186,232.56,232.48,23.776884]
[1731881197310,27.63595186,232.58,232.49,27.63595186]
[1731881197601,31.93605186,232.56,232.48,23.776884]
[1731881197793,27.63595186,232.58,232.49,27.63595186]
[1731881198199,27.63595186,232.58,232.5,23.776884]
[1731881199390,27.63595186,232.58,232.47,15.0555]
[1731881199391,27.63595186,232.6,232.51,31.93675186]
[1731881199587,27.63595186,232.62,232.54,23.776884]
[1731881199987,27.63595186,232.62,232.53,27.63595186]
[1731881200297,27.63595186,232.6,232.51,42.68895186]
[1731881200503,27.63595186,232.6,232.52,23.776884]
[1731881200988,27.63595186,232.6,232.52,28.077384]
[1731881201387,4.299,232.61,232.53,27.63595186]
[1731881202295,27.63595186,232.64,232.56,23.776884]
[1731881203009,27.63595186,232.66,232.58,23.776884]
[1731881203195,27.63595186,232.7,232.61,27.63595186]
[1731881203397,27.63595186,232.72,232.63,27.63595186]
[1731881203715,20.8394,232.83,232.63,27.63595186]
[1731881203716,27.63595186,232.76,232.69,27.63595186]
[1731881204087,27.63595186,232.76,232.68,23.776884]
[1731881204295,27.63595186,232.78,232.69,42.67735186]
[1731881205898,27.63595186,232.78,232.7,23.776884]
[1731881206099,27.63595186,232.8,232.71,27.63595186]
[1731881206717,27.63595186,232.76,232.7,23.776884]
[1731881206907,27.63595186,232.74,232.66,4.298]
[1731881207217,31.93155186,232.8,232.62,4.2988]
[1731881207218,27.63595186,232.68,232.62,4.2988]
[1731881207591,27.63595186,232.68,232.6,4.2991]
[1731881207798,27.63595186,232.64,232.58,15.048]
[1731881208095,27.63595186,232.62,232.53,31.93625186]
[1731881208327,27.63595186,232.62,232.53,27.63595186]
[1731881209204,27.63595186,232.64,232.55,27.63595186]
[1731881209404,27.63595186,232.6,232.52,10.7517]
[1731881209811,27.63595186,232.62,232.53,27.63595186]
[1731881210418,27.63595186,232.66,232.57,27.63595186]
[1731881210999,27.63595186,232.7,232.62,23.776884]
[1731881211497,27.63595186,232.66,232.57,27.63595186]
[1731881211819,27.63595186,232.62,232.55,23.776884]
[1731881212132,27.63595186,232.64,232.55,51.41283586]
[1731881212427,27.63595186,232.62,232.54,15.0511]
[1731881212794,27.63595186,232.64,232.55,51.41283586]
[1731881213099,27.63595186,232.66,232.57,27.63595186]
[1731881213409,27.63595186,232.64,232.55,51.41283586]
[1731881213799,27.63595186,232.7,232.61,27.63595186]
[1731881214015,27.63595186,232.7,232.62,23.776884]
[1731881214318,27.63595186,232.72,232.64,23.776884]
[1731881214496,27.63595186,232.72,232.63,27.63595186]
[1731881214704,27.63595186,232.7,232.61,27.63595186]
[1731881215635,27.63595186,232.68,232.6,4.299]
[1731881215794,27.63595186,232.68,232.59,38.38435186]
[1731881215994,27.63595186,232.62,232.53,38.38685186]
[1731881216196,27.63595186,232.66,232.57,27.63595186]
[1731881216919,36.07965186,232.8,232.62,27.63595186]
[1731881216920,27.63595186,232.71,232.62,27.63595186]
[1731881217617,27.63595186,232.73,232.64,27.63595186]
[1731881217821,27.63595186,232.73,232.65,23.776884]
[1731881219007,4.2963,232.76,232.68,27.63595186]
[1731881219212,4.2963,232.76,232.64,23.776884]
[1731881219213,31.93175186,232.79,232.7,27.63595186]
[1731881219700,31.93175186,232.79,232.71,4.2971]
[1731881220017,27.63595186,232.79,232.71,15.04]
[1731881220195,31.93125186,232.81,232.72,27.63595186]
[1731881220394,27.63595186,232.81,232.72,27.63595186]
[1731881220799,27.63595186,232.81,232.73,23.776884]
[1731881221018,4.2955,232.8,232.72,27.63595186]
[1731881221413,27.63595186,232.79,232.71,15.04]
[1731881221608,27.63595186,232.75,232.66,38.38095186]
[1731881221818,31.93245186,232.75,232.67,4.2978]
[1731881222035,31.93245186,232.75,232.66,38.38095186]
[1731881222036,27.63595186,232.71,232.64,4.2984]
[1731881222235,27.63595186,232.71,232.62,27.63595186]
[1731881222442,27.63595186,232.71,232.63,4.2985]
[1731881223723,27.63595186,232.69,232.63,4.2985]
[1731881224027,27.63595186,232.65,232.56,38.38565186]
[1731881224547,27.63595186,232.63,232.56,10.7497]
[1731881225436,27.63595186,232.63,232.56,15.0496]
[1731881226143,27.63595186,232.57,232.51,10.7522]
[1731881226347,15.1427,232.67,232.51,10.7522]
[1731881226348,27.63595186,232.55,232.51,10.7522]
[1731881227354,27.63595186,232.53,232.47,4.3016]
[1731881227654,27.63595186,232.53,232.47,15.0556]
[1731881228050,27.63595186,232.49,232.41,15.0592]
[1731881228551,27.63595186,232.47,232.41,15.0592]
[1731881229256,27.63595186,232.47,232.41,10.7565]
[1731881229454,27.63595186,232.47,232.33,0.1]
[1731881229455,27.63595186,232.45,232.36,27.63595186]
[1731881229634,27.63595186,232.45,232.37,4.3034]
[1731881229838,27.63595186,232.43,232.37,4.3034]
[1731881230442,27.63595186,232.48,232.4,27.63595186]
[1731881230634,27.63595186,232.44,232.37,4.3034]
[1731881230939,27.63595186,232.44,232.38,23.776884]
[1731881231132,27.63595186,232.46,232.38,51.41283586]
[1731881231438,27.63595186,232.46,232.39,4.3031]
[1731881232357,27.63595186,232.5,232.4,27.63595186]
[1731881232654,0.2,232.63,232.48,27.63595186]
[1731881232857,0.2,232.63,232.4,0.21916462]
[1731881232858,27.63595186,232.52,232.44,27.63595186]
[1731881233178,4.2984,232.64,232.47,23.776884]
[1731881233179,27.63595186,232.54,232.47,23.776884]
[1731881233532,27.63595186,232.54,232.46,27.63595186]
[1731881233757,31.93625186,232.54,232.46,27.63595186]
[1731881234844,31.93625186,232.54,232.39,32.3732]
[1731881234845,27.63595186,232.47,232.39,10.7577]
[1731881235155,4.3003,232.54,232.32,46.66145186]
[1731881235156,27.63595186,232.45,232.36,27.63595186]
[1731881235362,27.63595186,232.38,232.29,15.067]
[1731881235534,27.63595186,232.36,232.27,27.63595186]
[1731881235849,27.63595186,232.4,232.31,27.63595186]
[1731881236362,0.1,232.45,232.27,42.70445186]
[1731881236363,27.63595186,232.36,232.27,42.70445186]
[1731881237337,27.63595186,232.3,232.16,0.4618823]
[1731881237571,0.1,232.4,232.2,10.7663]
[1731881237572,27.63595186,232.28,232.2,10.7663]
[1731881238345,27.63595186,232.28,232.2,15.0729]
[1731881239050,31.94115186,232.28,232.2,15.0729]
[1731881239638,27.63595186,232.28,232.2,15.0729]
[1731881240257,27.63595186,232.32,232.24,23.776884]
[1731881240432,27.63595186,232.34,232.25,27.63595186]
[1731881240633,27.63595186,232.3,232.22,23.776884]
[1731881241561,27.63595186,232.34,232.25,27.63595186]
[1731881242447,27.63595186,232.34,232.26,23.776884]
[1731881242652,27.63595186,232.34,232.27,4.3053]
[1731881243060,27.63595186,232.34,232.25,27.63595186]
[1731881243257,27.63595186,232.34,232.25,31.94145186]
[1731881243963,27.63595186,232.32,232.25,4.3055]
[1731881244260,27.63595186,232.34,232.25,31.94145186]
[1731881244777,31.94015186,232.34,232.25,31.94145186]
[1731881245148,27.63595186,232.34,232.25,31.94145186]
[1731881246068,27.63595186,232.32,232.25,31.94145186]
[1731881247167,27.63595186,232.3,232.24,10.7647]
[1731881247671,4.55418,232.38,232.19,7.8448]
[1731881247672,27.63595186,232.26,232.19,38.40275186]
[1731881247969,27.63595186,232.24,232.17,4.3071]
[1731881248189,27.63595186,232.22,232.16,0.4618823]
[1731881248378,17.10121968,232.26,232.17,17.10121968]
[1731881248675,17.10121968,232.28,232.19,17.10121968]
[1731881248847,4.3047,232.3,232.21,17.10121968]
[1731881248848,21.40591968,232.3,232.21,17.10121968]
[1731881249484,17.10121968,232.3,232.21,17.10121968]
[1731881250151,17.10121968,232.28,232.21,4.3064]
[1731881250363,4.3049,232.29,232.21,4.3064]
[1731881250364,32.07693387,232.29,232.21,4.3064]
[1731881251653,27.77203387,232.33,232.24,27.77203387]
[1731881252859,32.07623387,232.33,232.25,4.3057]
[1731881253053,27.77203387,232.31,232.24,27.77203387]
[1731881253254,27.77203387,232.31,232.24,23.776884]
[1731881254060,27.77203387,232.31,232.22,32.07813387]
[1731881254461,27.77203387,232.29,232.21,10.7661]
[1731881254649,27.77203387,232.29,232.21,15.0725]
[1731881255668,32.07693387,232.29,232.21,15.0725]
[1731881256470,27.77203387,232.29,232.22,27.77203387]
[1731881256780,27.77203387,232.33,232.24,27.77203387]
[1731881257686,32.07633387,232.33,232.25,4.3057]
[1731881257893,27.77203387,232.35,232.26,51.54891787]
[1731881258563,27.77203387,232.33,232.26,23.776884]
[1731881259164,27.77203387,232.33,232.27,4.3053]
[1731881259365,32.07623387,232.33,232.25,10.7642]
[1731881259575,32.07623387,232.33,232.25,15.0699]
[1731881260305,27.77203387,232.35,232.29,23.776884]
[1731881261408,27.77203387,232.35,232.29,28.081784]
[1731881263084,32.07553387,232.37,232.29,38.844184]
[1731881263279,7.7567,232.43,232.29,38.844184]
[1731881263280,32.07483387,232.41,232.32,27.77203387]
[1731881263487,32.07483387,232.41,232.33,23.776884]
[1731881263695,27.77203387,232.47,232.4,27.77203387]
[1731881264006,27.77203387,232.49,232.42,27.77203387]
[1731881264304,4.301,232.51,232.44,27.77203387]
[1731881264305,27.77203387,232.51,232.44,27.77203387]
[1731881265400,8.293,232.57,232.44,27.77203387]
[1731881265401,32.07253387,232.53,232.44,32.07413387]
[1731881265615,8.293,232.57,232.46,27.77203387]
[1731881265616,27.77203387,232.55,232.46,27.77203387]
[1731881265779,4.2998,232.57,232.48,27.77203387]
[1731881265780,27.77203387,232.57,232.48,27.77203387]
[1731881265982,27.77203387,232.61,232.51,27.77203387]
[1731881266284,27.77203387,232.61,232.53,27.77203387]
[1731881266983,27.77203387,232.65,232.57,27.77203387]
[1731881267178,27.77203387,232.69,232.61,27.77203387]
[1731881267399,27.77203387,232.73,232.65,27.77203387]
[1731881267592,27.77203387,232.75,232.67,27.77203387]
[1731881267794,27.77203387,232.77,232.69,27.77203387]
[1731881267994,27.77203387,232.75,232.67,27.77203387]
[1731881268216,27.77203387,232.77,232.69,27.77203387]
[1731881268508,27.77203387,232.77,232.67,27.77203387]
[1731881268681,27.77203387,232.77,232.69,27.77203387]
[1731881268880,27.77203387,232.77,232.67,27.77203387]
[1731881269308,27.77203387,232.72,232.65,27.77203387]
[1731881269508,27.77203387,232.7,232.62,23.776884]
[1731881269709,27.77203387,232.68,232.61,10.7473]
[1731881270892,27.87203387,232.8,232.55,27.77203387]
[1731881270893,27.77203387,232.64,232.55,27.77203387]
[1731881271096,27.77203387,232.6,232.51,27.77203387]
[1731881271993,27.77203387,232.56,232.48,4.3014]
[1731881272196,27.77203387,232.58,232.49,27.77203387]
[1731881272893,32.07173387,232.58,232.49,27.77203387]
[1731881273093,27.77203387,232.56,232.48,4.3014]
[1731881273308,32.07173387,232.58,232.49,27.77203387]
[1731881273714,32.07173387,232.58,232.48,23.87055862]
[1731881273715,27.77203387,232.56,232.48,23.87055862]
[1731881274009,27.77203387,232.54,232.46,7.6194]
[1731881274194,27.77203387,232.54,232.45,17.0548935]
[1731881274195,17.0548935,232.54,232.45,17.0548935]
[1731881274397,17.0548935,232.52,232.43,17.0548935]
[1731881274618,17.0548935,232.52,232.39,7.6194]
[1731881274619,17.0548935,232.46,232.39,7.6194]
[1731881276230,27.72990564,232.47,232.39,7.6194]
[1731881277532,27.72990564,232.49,232.4,66.56698964]
[1731881277734,27.72990564,232.53,232.42,27.72990564]
[1731881277936,27.72990564,232.49,232.41,0.09367462]
[1731881278122,0.1,232.72,232.51,20.0]
[1731881278324,27.72990564,232.65,232.55,27.72990564]
[1731881279206,27.72990564,232.65,232.49,20.0]
[1731881279207,27.72990564,232.6,232.51,27.72990564]
[1731881279412,4.2984,232.64,232.46,27.72990564]
[1731881279413,27.72990564,232.55,232.46,27.72990564]
[1731881279619,27.72990564,232.59,232.5,27.72990564]
[1731881280523,27.72990564,232.59,232.45,15.0566]
[1731881280524,27.72990564,232.57,232.48,27.72990564]
[1731881280726,27.72990564,232.59,232.5,27.72990564]
[1731881280923,27.72990564,232.61,232.5,27.72990564]
[1731881281124,27.72990564,232.59,232.5,27.72990564]
[1731881281918,27.72990564,232.59,232.51,4.3008]
[1731881282116,32.02940564,232.59,232.5,27.72990564]
[1731881282617,27.72990564,232.57,232.49,10.7531]
[1731881283424,27.72990564,232.53,232.44,38.48530564]
[1731881283628,27.72990564,232.51,232.42,32.03230564]
[1731881283831,27.72990564,232.53,232.44,27.72990564]
[1731881284140,32.03050564,232.53,232.44,27.72990564]
[1731881284337,27.72990564,232.51,232.42,27.72990564]
[1731881284724,32.03050564,232.53,232.44,27.72990564]
[1731881286135,32.03010564,232.55,232.46,27.72990564]
[1731881286336,20.0315,232.62,232.52,27.72990564]
[1731881286337,27.72990564,232.61,232.52,27.72990564]
[1731881286644,32.02900564,232.61,232.52,27.72990564]
[1731881287139,27.72990564,232.61,232.52,27.72990564]
[1731881287312,4.2987,232.63,232.48,27.72990564]
[1731881287313,27.72990564,232.57,232.48,27.72990564]
[1731881288318,4.2999,232.56,232.48,27.72990564]
[1731881289927,27.72990564,232.57,232.48,27.72990564]
[1731881290254,27.82990564,232.68,232.48,27.72990564]
[1731881290255,27.72990564,232.61,232.52,27.72990564]
[1731881290468,27.72990564,232.59,232.5,27.72990564]
[1731881291024,4.2988,232.62,232.54,27.72990564]
[1731881291336,10.7446,232.68,232.54,27.72990564]
[1731881291337,17.194442,232.74,232.63,0.09367462]
[1731881291546,27.72990564,232.83,232.73,27.72990564]
[1731881291758,32.02450564,232.85,232.75,27.72990564]
[1731881291926,32.02450564,232.85,232.68,27.72990564]
[1731881291927,4.2946,232.85,232.77,27.72990564]
[1731881292132,10.7343,232.9,232.81,27.72990564]
[1731881292133,4.2937,232.9,232.81,27.72990564]
[1731881292536,4.2933,232.92,232.83,27.72990564]
[1731881293045,27.72990564,232.93,232.74,0.09367462]
[1731881293046,27.72990564,232.95,232.85,27.72990564]
[1731881293260,32.02270564,232.95,232.85,27.72990564]
[1731881294052,0.4618823,232.98,232.89,27.72990564]
[1731881294053,27.72990564,232.97,232.89,27.72990564]
[1731881294430,0.4618823,232.98,232.89,27.72990564]
[1731881294748,0.4618823,232.98,232.91,27.72990564]
[1731881295245,0.4618823,232.98,232.92,28.070184]
[1731881295754,0.4618823,232.98,232.92,4.2933]
[1731881296354,28.19178794,232.98,232.9,10.7341]
[1731881296948,0.4618823,232.98,232.93,27.72990564]
[1731881297345,0.4618823,232.98,232.92,4.2932]
[1731881297979,0.4618823,232.98,232.91,27.72990564]
[1731881298155,28.19178794,232.98,232.9,10.7341]
[1731881299273,28.19178794,232.98,232.9,15.0277]
[1731881299474,55.45981128,232.92,232.76,15.0368]
[1731881299771,27.72990564,232.9,232.81,27.72990564]
[1731881299977,32.02220564,232.97,232.87,27.72990564]
[1731881300349,4.2923,232.97,232.89,27.72990564]
[1731881300580,32.02220564,232.97,232.89,27.72990564]
[1731881300753,0.4618823,232.98,232.94,27.72990564]
[1731881301156,0.4618823,232.98,232.83,0.1]
[1731881301157,0.4618823,232.98,232.92,27.72990564]
[1731881301752,0.4618823,232.98,232.92,32.02300564]
[1731881302672,27.72990564,232.97,232.88,38.46460564]
[1731881302857,27.72990564,232.97,232.88,42.75860564]
[1731881303056,27.72990564,232.95,232.88,15.0287]
[1731881303367,4.7541823,232.98,232.88,42.75860564]
[1731881303368,27.72990564,232.97,232.88,42.75860564]
[1731881303563,4.2925,232.96,232.88,38.46460564]
[1731881303757,27.72990564,232.95,232.86,27.72990564]
[1731881303956,27.72990564,232.93,232.84,27.72990564]
[1731881304164,27.72990564,232.95,232.86,27.72990564]
[1731881304472,0.4618823,232.98,232.94,27.72990564]
[1731881305377,0.4618823,232.98,232.95,4.2925]
[1731881305561,0.4618823,232.98,232.96,27.72990564]
[1731881306090,0.4618823,232.98,232.95,15.0244]
[1731881306981,0.4618823,232.98,232.96,27.72990564]
[1731881307166,0.4618823,232.98,232.97,23.87055862]
[1731881307365,0.4618823,232.98,232.97,23.99604862]
[1731881307685,0.4618823,232.98,232.97,48.41383862]
[1731881307988,0.4618823,232.98,232.97,48.51383862]
[1731881308305,4.2887,233.17,233.0,20.34465462]
[1731881308458,4.2887,233.17,233.1,27.72990564]
[1731881309468,0.4618823,233.21,233.14,27.72990564]
[1731881309869,0.4618823,233.21,233.15,23.776884]
[1731881310296,0.4618823,233.21,233.2,27.72990564]
[1731881310471,0.4618823,233.21,233.2,51.72595426]
[1731881311377,0.4618823,233.21,233.17,20.0]
[1731881311683,0.4618823,233.21,233.18,51.50678964]
[1731881311889,0.4618823,233.21,233.18,27.72990564]
[1731881312307,0.4618823,233.21,233.17,23.776884]
[1731881312515,0.4618823,233.21,233.16,27.72990564]
[1731881312684,28.19178794,233.21,233.14,27.72990564]
[1731881312882,28.19178794,233.21,233.12,27.72990564]
[1731881313083,0.4618823,233.21,233.15,0.09367462]
[1731881313686,0.4618823,233.21,233.16,27.72990564]
[1731881314095,0.4618823,233.21,233.17,23.776884]
[1731881314595,0.4618823,233.21,233.07,8.3725]
[1731881314596,32.47978794,233.21,233.14,27.72990564]
[1731881314803,32.47978794,233.21,233.12,27.72990564]
[1731881315201,27.72990564,233.19,233.12,27.72990564]
[1731881315687,32.01820564,233.19,233.12,27.72990564]
[1731881316107,4.2883,233.19,233.12,27.72990564]
[1731881316404,32.47978794,233.21,233.12,27.72990564]
[1731881316911,10.7166,233.29,233.15,23.776884]
[1731881316912,27.72990564,233.23,233.15,23.776884]
[1731881317317,27.72990564,233.23,233.16,0.09367462]
[1731881318018,27.72990564,233.23,233.15,23.776884]
[1731881318019,27.72990564,233.21,233.13,23.776884]
[1731881318581,27.72990564,233.23,233.14,27.82358026]
[1731881318802,27.72990564,233.23,233.15,23.776884]
[1731881319088,27.72990564,233.21,233.13,23.776884]
[1731881319392,27.72990564,233.23,233.14,27.72990564]
[1731881319611,27.72990564,233.23,233.15,23.776884]
[1731881321004,4.2877,233.22,233.15,23.776884]
[1731881322027,27.72990564,233.21,233.15,23.776884]
[1731881322432,27.72990564,233.23,233.15,23.776884]
[1731881323020,27.72990564,233.25,233.18,27.72990564]
[1731881323729,27.72990564,233.25,233.16,27.82358026]
[1731881323933,27.72990564,233.23,233.17,23.776884]
[1731881326021,27.72990564,233.19,233.1,27.72990564]
[1731881326335,4.2885,233.18,233.11,16.95926229]
[1731881327343,20.0,233.11,232.87,0.1]
[1731881327528,20.0,233.11,232.74,0.09367462]
[1731881327529,16.95926229,232.93,232.79,10.7392]
[1731881327709,20.1,233.02,232.79,10.7392]
[1731881327710,16.95926229,232.95,232.85,16.95926229]
[1731881327915,16.95926229,232.99,232.89,16.95926229]
[1731881328615,16.95926229,232.99,232.9,0.09367462]
[1731881328825,16.95926229,232.99,232.89,16.95926229]
[1731881329336,16.95926229,232.97,232.9,23.776884]
[1731881329920,16.95926229,232.97,232.88,44.12153862]
[1731881330434,7.7975,233.03,232.8,27.61101298]
[1731881330435,27.61101298,232.9,232.8,27.61101298]
[1731881330643,27.61101298,232.88,232.78,27.61101298]
[1731881330943,27.61101298,232.86,232.76,31.90701298]
[1731881331138,27.61101298,232.84,232.74,27.7046876]
[1731881331440,27.61101298,232.82,232.74,27.7046876]
[1731881332140,27.61101298,232.82,232.75,4.2964]
[1731881332329,27.61101298,232.82,232.76,24.027864]
[1731881332532,27.61101298,232.82,232.77,0.09367462]
[1731881332722,27.61101298,232.82,232.75,24.2964]
[1731881332723,27.61101298,232.82,232.75,20.0]
[1731881333226,27.61101298,232.82,232.76,0.09367462]
[1731881333429,27.61101298,232.84,232.76,27.7046876]
[1731881334678,27.61101298,232.88,232.81,23.776884]
[1731881335584,0.1,232.99,232.82,20.21916462]
[1731881335754,27.61101298,232.98,232.89,27.7046876]
[1731881335947,27.61101298,232.98,232.9,23.776884]
[1731881336148,27.61101298,232.96,232.88,23.87055862]
[1731881336370,27.61101298,232.98,232.9,23.87055862]
[1731881336751,27.61101298,232.98,232.91,27.61101298]
[1731881336952,0.1,233.11,232.9,28.16405862]
[1731881336953,27.61101298,233.04,232.97,0.09367462]
[1731881337273,49.05551298,233.16,232.97,0.09367462]
[1731881337274,27.61101298,233.1,233.03,0.09367462]
[1731881337566,27.61101298,233.14,233.06,23.776884]
[1731881337769,27.61101298,233.12,233.07,0.09367462]
[1731881337958,27.61101298,233.14,233.07,0.34465462]
[1731881338993,27.61101298,233.16,233.09,23.99604862]
[1731881339359,27.61101298,233.12,233.09,23.776884]
[1731881340281,27.61101298,233.1,233.04,20.0]
[1731881340464,27.61101298,233.1,233.05,23.776884]
[1731881340864,27.61101298,233.06,232.97,27.61101298]
[1731881341067,27.61101298,233.06,232.99,4.2919]
[1731881341269,27.61101298,233.06,232.97,31.90331298]
[1731881341485,27.61101298,233.06,232.97,42.63421298]
[1731881341662,27.61101298,233.04,232.97,15.0232]
[1731881342276,27.61101298,233.08,233.01,20.0]
[1731881342474,27.61101298,233.08,233.02,0.09367462]
[1731881343077,27.61101298,233.08,233.0,4.38537462]
[1731881343280,27.61101298,233.08,233.02,0.09367462]
[1731881343668,27.61101298,233.08,233.03,23.776884]
[1731881344179,27.61101298,233.08,233.03,0.12549]
[1731881344365,27.61101298,233.12,233.06,0.09367462]
[1731881344890,27.61101298,233.12,233.05,23.776884]
[1731881346575,27.61101298,233.12,233.07,23.776884]
[1731881347185,27.61101298,233.12,233.04,51.90201298]
[1731881347593,27.61101298,233.12,233.05,23.776884]
[1731881348263,27.61101298,233.1,233.05,23.776884]
[1731881348464,27.61101298,233.1,233.03,23.776884]
[1731881348673,27.61101298,233.1,233.03,4.2912]
[1731881349474,27.61101298,233.08,233.02,10.7286]
[1731881349881,27.61101298,233.04,232.98,4.2921]
[1731881350078,27.61101298,233.04,232.98,28.068984]
[1731881350376,16.98008554,233.03,232.98,4.2921]
[1731881350576,16.98008554,233.03,232.97,10.7308]
[1731881350780,16.98008554,233.03,232.97,15.0231]
[1731881350990,16.98008554,233.05,232.97,15.0231]
[1731881351292,16.98008554,233.03,232.93,16.98008554]
[1731881351468,16.98008554,233.01,232.94,4.2929]
[1731881352290,16.98008554,233.03,232.94,15.0252]
[1731881352487,16.98008554,233.05,232.96,0.09367462]
[1731881353194,16.98008554,233.05,232.98,23.99604862]
[1731881353597,16.98008554,233.05,233.0,23.776884]
[1731881353798,16.98008554,233.09,233.01,17.32474016]
[1731881354010,7.65,233.19,233.04,23.776884]
[1731881354297,16.98008554,233.15,233.09,0.09367462]
[1731881354505,16.98008554,233.13,233.08,43.776884]
[1731881354881,16.98008554,233.15,233.09,0.09367462]
[1731881355884,16.98008554,233.17,233.11,23.87055862]
[1731881356093,16.98008554,233.17,233.12,0.25098]
[1731881356286,16.98008554,233.19,233.11,23.776884]
[1731881356600,16.98008554,233.17,233.11,23.776884]
[1731881356814,7.65,233.26,233.14,23.87055862]
[1731881357123,16.98008554,233.22,233.16,23.776884]
[1731881357311,16.98008554,233.22,233.15,0.09367462]
[1731881357802,16.98008554,233.22,233.16,23.776884]
[1731881358002,16.98008554,233.22,233.16,28.065784]
[1731881358311,16.98008554,233.18,233.13,23.776884]
[1731881358478,16.98008554,233.2,233.14,0.34465462]
[1731881358681,16.98008554,233.2,233.16,0.09367462]
[1731881359108,16.98008554,233.22,233.16,0.09367462]
[1731881359317,16.98008554,233.22,233.17,23.776884]
[1731881359807,16.98008554,233.22,233.16,20.0]
[1731881360006,16.98008554,233.2,233.15,4.2889]
[1731881360306,16.98008554,233.18,233.11,16.98008554]
[1731881360597,24.73578554,233.17,233.09,16.98008554]
[1731881360779,16.98008554,233.1,232.89,19.5598]
[1731881360978,16.98008554,233.06,232.98,16.98008554]
[1731881361509,16.98008554,233.06,232.96,16.98008554]
[1731881361888,16.98008554,233.06,232.97,4.2923]
[1731881362098,16.98008554,233.06,232.98,16.98008554]
[1731881362294,27.58701285,233.06,232.97,42.61021285]
[1731881362608,10.823,233.15,233.01,27.58701285]
[1731881362609,31.87711285,233.1,233.01,27.58701285]
[1731881362902,31.87711285,233.1,233.0,20.0]
[1731881362903,27.58701285,233.12,233.05,27.58701285]
[1731881363102,27.58701285,233.12,233.06,23.776884]
[1731881363305,27.58701285,233.14,233.06,23.776884]
[1731881363604,27.58701285,233.14,233.05,27.68068747]
[1731881363898,27.58701285,233.14,233.06,43.776884]
[1731881364100,27.58701285,233.14,233.07,4.2905]
[1731881364292,27.58701285,233.16,233.08,23.87055862]
[1731881364891,27.58701285,233.16,233.1,23.776884]
[1731881366205,27.58701285,233.16,233.11,4.2898]
[1731881366781,27.58701285,233.18,233.12,23.776884]
[1731881366988,27.58701285,233.18,233.13,20.0]
[1731881367308,27.58701285,233.18,233.12,23.776884]
[1731881367814,27.58701285,233.14,233.11,10.7245]
[1731881367980,7.7919,233.25,233.06,10.7265]
[1731881367981,27.58701285,233.12,233.06,10.7265]
[1731881368182,27.58701285,233.12,233.07,23.776884]
[1731881368381,10.7185,233.24,233.03,27.58701285]
[1731881368382,27.58701285,233.1,233.03,27.58701285]
[1731881368583,27.58701285,233.1,233.01,38.31581285]
[1731881368810,27.58701285,233.1,233.04,0.09367462]
[1731881369490,27.58701285,233.1,233.02,0.09367462]
[1731881369997,27.58701285,233.1,233.04,23.87055862]
[1731881371008,27.58701285,233.16,232.99,4.2919]
[1731881371009,27.58701285,233.06,232.99,4.2919]
[1731881371182,10.8227,233.15,232.98,10.7304]
[1731881371183,27.58701285,233.04,232.98,10.7304]
[1731881371391,27.58701285,233.0,232.93,15.0256]
[1731881371705,27.58701285,232.98,232.93,15.0256]
[1731881371898,27.58701285,232.94,232.87,15.0295]
[1731881372997,27.58701285,232.94,232.88,0.09367462]
[1731881373308,27.58701285,232.94,232.9,23.776884]
[1731881373515,27.58701285,232.96,232.9,23.776884]
[1731881374882,27.58701285,232.96,232.9,28.070384]
[1731881375699,27.58701285,232.94,232.9,28.070384]
[1731881376808,4.2914,233.02,232.84,10.7368]
[1731881376809,27.58701285,232.92,232.84,10.7368]
[1731881377015,27.58701285,232.92,232.84,15.0315]